bitfinex/quotes_SOLUSD_20260208
["timestamp","ask_amount","ask_price","bid_price","bid_amount"]
[1770574803507,0.56661736,87.519,87.471,40.01326152]
[1770574803706,0.56661736,87.509,87.48,13.95417235]
[1770574804612,0.56661736,87.509,87.471,40.01326152]
[1770574804613,0.56661736,87.533,87.5,13.95417235]
[1770574804817,0.56661736,87.533,87.448,5.13032502]
[1770574804818,0.56661736,87.518,87.48,13.95417235]
[1770574805327,11.42524954,87.526,87.481,0.02054589]
[1770574805518,0.56661736,87.533,87.5,13.95417235]
[1770574805722,0.56661736,87.529,87.49,13.95417235]
[1770574805925,0.56661736,87.529,87.5,13.95417235]
[1770574806932,0.56661736,87.529,87.5,13.98349759]
[1770574808332,0.56661736,87.529,87.483,0.03781221]
[1770574808333,0.56661736,87.527,87.49,13.98349759]
[1770574809131,0.56661736,87.517,87.481,11.4310536]
[1770574809433,0.56661736,87.517,87.49,13.98349759]
[1770574812630,11.42648201,87.516,87.482,0.06194378]
[1770574812837,0.56661736,87.515,87.49,13.98349759]
[1770574813638,0.56661736,87.515,87.48,13.98349759]
[1770574814634,0.56661736,87.515,87.49,13.98349759]
[1770574814933,0.56661736,87.515,87.486,11.43035751]
[1770574816038,0.56661736,87.515,87.481,11.4310536]
[1770574816344,0.56661736,87.515,87.481,11.59494792]
[1770574816737,0.56661736,87.515,87.49,13.98349759]
[1770574817855,0.56661736,87.515,87.481,11.59494792]
[1770574818141,0.60153474,87.513,87.48,13.98349759]
[1770574818450,0.60153474,87.511,87.482,11.43092293]
[1770574818652,0.60153474,87.499,87.451,0.18514617]
[1770574818827,0.60153474,87.479,87.45,11.43504113]
[1770574819324,0.60153474,87.479,87.45,25.41853872]
[1770574819520,39.99451503,87.512,87.46,13.98349759]
[1770574819521,0.60153474,87.489,87.46,13.98349759]
[1770574820533,11.42917305,87.496,87.461,0.20591262]
[1770574820740,13.98349759,87.49,87.46,25.41723875]
[1770574821037,0.60153474,87.479,87.45,13.98349759]
[1770574821726,0.60153474,87.479,87.454,11.43449287]
[1770574822635,0.60153474,87.479,87.45,13.98349759]
[1770574822837,13.98349759,87.49,87.45,25.41850631]
[1770574822838,0.60153474,87.477,87.45,25.41850631]
[1770574823229,0.60153474,87.505,87.47,13.98349759]
[1770574823432,0.60153474,87.515,87.49,13.98349759]
[1770574824744,0.60153474,87.514,87.481,11.4310536]
[1770574825234,0.60153474,87.514,87.482,0.2557773]
[1770574826130,0.60153474,87.513,87.481,11.4310536]
[1770574828723,0.60153474,87.513,87.49,13.98349759]
[1770574829338,0.60153474,87.515,87.488,0.29364631]
[1770574829540,0.60153474,87.515,87.49,13.98349759]
[1770574829746,0.60153474,87.515,87.423,1.14386374]
[1770574829747,0.60153474,87.509,87.47,13.98349759]
[1770574830043,0.60153474,87.489,87.451,11.43497501]
[1770574830650,0.60153474,87.489,87.46,13.98349759]
[1770574830844,0.60153474,87.489,87.451,11.43497501]
[1770574831049,0.60153474,87.489,87.46,13.98349759]
[1770574831547,0.60153474,87.489,87.451,11.43497501]
[1770574832149,0.60153474,87.487,87.451,11.43497501]
[1770574832452,0.60153474,87.487,87.46,13.98349759]
[1770574833627,0.60153474,87.487,87.451,11.75589654]
[1770574833934,0.60153474,87.487,87.451,11.43497501]
[1770574834936,0.60153474,87.485,87.451,11.43497501]
[1770574835833,0.60153474,87.479,87.446,11.43557251]
[1770574836736,0.60153474,87.479,87.441,11.43622503]
[1770574836936,0.60153474,87.477,87.441,11.43622503]
[1770574837131,0.60153474,87.477,87.44,13.98349759]
[1770574837335,0.60153474,87.469,87.417,0.36433125]
[1770574837556,0.60153474,87.459,87.426,11.43821806]
[1770574838352,0.60153474,87.459,87.421,11.43888039]
[1770574839552,0.60153474,87.459,87.396,57.21043462]
[1770574839553,0.60153474,87.449,87.414,11.43970792]
[1770574839740,0.60153474,87.439,87.401,11.4414965]
[1770574840430,0.60153474,87.429,87.394,11.8234188]
[1770574840633,0.60153474,87.429,87.394,11.44241369]
[1770574841362,0.60153474,87.427,87.394,11.44241369]
[1770574842239,0.60153474,87.427,87.4,13.98349759]
[1770574842955,0.60153474,87.427,87.395,0.40530457]
[1770574843458,0.60153474,87.427,87.4,13.98349759]
[1770574843752,11.43824491,87.426,87.4,13.98349759]
[1770574843959,0.60153474,87.425,87.396,11.44217126]
[1770574844651,0.60153474,87.451,87.411,0.4210426]
[1770574844957,0.60153474,87.451,87.42,13.98349759]
[1770574845854,5.13032502,87.477,87.405,11.44091294]
[1770574845855,0.7284979,87.439,87.405,11.44091294]
[1770574846043,0.7284979,87.429,87.39,11.44286643]
[1770574846244,0.7284979,87.429,87.394,11.44238191]
[1770574847355,0.7284979,87.419,87.38,13.98349759]
[1770574847541,13.98349759,87.39,87.361,11.89810244]
[1770574847746,0.7284979,87.389,87.361,11.44665394]
[1770574848870,11.44321874,87.388,87.36,0.2]
[1770574849166,13.98349759,87.37,87.36,0.2]
[1770574849464,0.7284979,87.369,87.35,0.2]
[1770574851650,0.7284979,87.367,87.35,0.2]
[1770574851950,11.44583829,87.368,87.334,91.53621341]
[1770574851952,0.7284979,87.359,87.334,91.53621341]
[1770574852863,0.7284979,87.358,87.33,0.2]
[1770574853374,11.44707878,87.359,87.33,0.2]
[1770574853375,0.7284979,87.349,87.33,0.2]
[1770574853869,7.18040205,87.366,87.341,0.75169933]
[1770574854171,7.18040205,87.366,87.33,0.2]
[1770574854172,7.18040205,87.366,87.35,13.98349759]
[1770574854988,7.18040205,87.366,87.336,0.75169933]
[1770574855269,7.18040205,87.366,87.34,14.73519692]
[1770574856450,7.18040205,87.366,87.341,0.75169933]
[1770574857572,7.18040205,87.366,87.342,11.44924549]
[1770574858865,7.18040205,87.366,87.35,13.98349759]
[1770574859068,7.18040205,87.366,87.35,14.73519692]
[1770574859674,7.18040205,87.366,87.351,0.75169933]
[1770574859870,7.18040205,87.366,87.35,13.98349759]
[1770574860072,13.98349759,87.36,87.33,0.2]
[1770574860277,0.7284979,87.349,87.301,1.23794068]
[1770574860471,0.7284979,87.349,87.321,0.75169933]
[1770574861162,0.7284979,87.349,87.31,14.18349759]
[1770574861568,0.7284979,87.349,87.315,11.45272536]
[1770574862164,0.7284979,87.347,87.315,11.45272536]
[1770574862676,0.7284979,87.347,87.321,0.75169933]
[1770574863456,0.7284979,87.359,87.321,0.75169933]
[1770574863977,0.7284979,87.359,87.33,13.98349759]
[1770574864190,0.7284979,87.359,87.331,11.45068761]
[1770574864362,0.7284979,87.359,87.332,0.75169933]
[1770574865058,7.17645099,87.36,87.341,0.75169933]
[1770574867597,0.7284979,87.409,87.361,0.75169933]
[1770574867813,0.7284979,87.389,87.343,0.75169933]
[1770574869112,0.7284979,87.379,87.34,14.03269978]
[1770574869314,0.7284979,87.379,87.334,0.75169933]
[1770574869912,0.7284979,87.379,87.337,11.44982484]
[1770574870495,0.7284979,87.379,87.344,11.44898333]
[1770574871319,0.7284979,87.377,87.344,11.44898333]
[1770574872219,11.44452837,87.378,87.338,11.44966801]
[1770574872220,0.7284979,87.369,87.338,11.44966801]
[1770574873785,0.7284979,87.367,87.338,11.44966801]
[1770574874715,0.7284979,87.367,87.338,12.20136734]
[1770574875708,11.44478197,87.377,87.341,0.81039868]
[1770574876298,0.80188521,87.376,87.341,0.81039868]
[1770574876797,0.80188521,87.376,87.343,0.81039868]
[1770574877013,11.44478197,87.377,87.343,0.81039868]
[1770574878308,28.60804687,87.388,87.343,0.81039868]
[1770574878513,0.80188521,87.378,87.345,0.81039868]
[1770574881112,0.80188521,87.378,87.35,14.84309846]
[1770574881308,0.80188521,87.376,87.35,14.84309846]
[1770574882014,0.80188521,87.376,87.346,11.44872117]
[1770574882311,0.80188521,87.376,87.341,11.44927771]
[1770574882498,0.80188521,87.376,87.345,11.44877524]
[1770574883514,0.80188521,87.374,87.341,11.44937658]
[1770574884212,0.80188521,87.374,87.342,0.81039868]
[1770574885717,0.80188521,87.374,87.343,11.44911441]
[1770574885906,0.80188521,87.374,87.344,0.81039868]
[1770574887520,0.80188521,87.374,87.345,11.44885225]
[1770574888218,0.80188521,87.374,87.346,0.81039868]
[1770574889099,0.80188521,87.372,87.346,0.81039868]
[1770574889417,0.80188521,87.372,87.34,26.29250172]
[1770574889804,11.44518329,87.373,87.32,11.45202728]
[1770574889805,0.80188521,87.359,87.32,11.45202728]
[1770574890003,0.80188521,87.359,87.324,11.45155893]
[1770574890212,0.80188521,87.359,87.332,12.26093864]
[1770574890400,0.80188521,87.359,87.333,0.81039868]
[1770574890719,0.80188521,87.359,87.336,11.4499364]
[1770574891225,0.80188521,87.358,87.322,0.81039868]
[1770574891405,0.80188521,87.358,87.32,14.03269978]
[1770574891718,0.80188521,87.358,87.32,14.84309846]
[1770574891920,0.80188521,87.358,87.321,0.81039868]
[1770574892121,0.80188521,87.358,87.331,0.81039868]
[1770574893133,7.16856271,87.372,87.34,14.03269978]
[1770574893310,7.16856271,87.372,87.343,0.81039868]
[1770574893626,7.16856271,87.372,87.351,0.81039868]
[1770574895103,0.80188521,87.371,87.342,0.81039868]
[1770574895320,7.16856271,87.372,87.35,11.44810202]
[1770574895502,7.16856271,87.372,87.351,0.81039868]
[1770574895707,0.80188521,87.371,87.35,11.44810202]
[1770574896633,0.80188521,87.371,87.345,11.44885225]
[1770574896837,0.80188521,87.371,87.346,0.81039868]
[1770574899014,0.80188521,87.369,87.346,0.81039868]
[1770574899629,0.80188521,87.371,87.348,0.81039868]
[1770574901436,7.16856271,87.372,87.351,0.81039868]
[1770574901614,0.80188521,87.371,87.34,14.03269978]
[1770574902128,0.80188521,87.371,87.343,11.44907525]
[1770574902322,0.80188521,87.371,87.335,11.45005002]
[1770574902516,0.80188521,87.369,87.33,11.4507339]
[1770574903414,0.80188521,87.367,87.323,0.81039868]
[1770574903817,0.80188521,87.367,87.331,0.81039868]
[1770574904612,0.80188521,87.367,87.34,14.03269978]
[1770574904816,0.80188521,87.367,87.337,0.81039868]
[1770574905814,0.80188521,87.367,87.338,11.44976985]
[1770574906840,0.80188521,87.367,87.338,12.34685975]
[1770574907134,0.80188521,87.367,87.339,0.8970899]
[1770574907921,7.16856271,87.372,87.341,0.8970899]
[1770574908436,7.16856271,87.372,87.351,0.8970899]
[1770574910429,7.16856271,87.372,87.353,0.8970899]
[1770574910633,0.88417398,87.391,87.36,14.03269978]
[1770574910825,0.88417398,87.391,87.352,40.06777177]
[1770574911232,0.95565808,87.389,87.352,11.44793479]
[1770574912336,0.95565808,87.396,87.36,14.03269978]
[1770574912526,0.95565808,87.396,87.361,11.44675541]
[1770574913331,0.95565808,87.394,87.361,11.44675541]
[1770574914527,0.95565808,87.389,87.352,28.61983698]
[1770574917343,0.95565808,87.389,87.353,0.02090417]
[1770574919548,0.95565808,87.379,87.351,11.44806584]
[1770574921246,0.95565808,87.379,87.352,0.03104235]
[1770574921452,11.44321874,87.388,87.352,0.03104235]
[1770574921453,0.95565808,87.387,87.352,0.03104235]
[1770574922451,0.95565808,87.369,87.342,11.44916077]
[1770574922947,0.95565808,87.369,87.346,11.44870927]
[1770574923145,0.95565808,87.369,87.35,11.44811385]
[1770574923735,0.95565808,87.369,87.341,11.44937658]
[1770574924342,0.95565808,87.369,87.342,0.03834439]
[1770574925634,0.95565808,87.383,87.35,5.23657424]
[1770574925845,0.95565808,87.389,87.35,5.23657424]
[1770574926039,0.95565808,87.389,87.344,0.0407227]
[1770574928052,11.44321874,87.388,87.344,0.0407227]
[1770574928255,0.95565808,87.387,87.344,0.0407227]
[1770574930443,0.95565808,87.385,87.35,5.28878498]
[1770574930638,0.95565808,87.385,87.351,0.05221074]
[1770574933457,0.95565808,87.385,87.351,11.50027658]
[1770574933658,7.21513846,87.391,87.371,0.0587917]
[1770574933951,0.95565808,87.39,87.36,5.23784824]
[1770574934159,0.95565808,87.389,87.351,11.50685754]
[1770574935056,0.95565808,87.389,87.352,0.0651485]
[1770574935748,7.21513846,87.391,87.361,0.06721894]
[1770574935947,7.21513846,87.391,87.351,40.06823046]
[1770574935948,7.21513846,87.391,87.371,0.06721894]
[1770574937062,7.21513846,87.391,87.372,0.06926561]
[1770574937864,0.95565808,87.39,87.366,11.44601534]
[1770574938066,0.95565808,87.39,87.37,11.44550891]
[1770574938367,7.21513846,87.391,87.37,16.68335715]
[1770574939347,7.21513846,87.391,87.37,16.75862277]
[1770574940162,8.17079654,87.391,87.37,16.68335715]
[1770574941062,8.17079654,87.391,87.364,0.07721986]
[1770574941268,5.23784824,87.37,87.334,11.45029427]
[1770574941562,0.95565808,87.369,87.334,11.45029427]
[1770574942651,0.95565808,87.367,87.334,11.45029427]
[1770574943970,0.95565808,87.365,87.334,11.45029427]
[1770574945164,0.95565808,87.365,87.335,0.08665947]
[1770574949065,0.95565808,87.365,87.34,5.23784824]
[1770574949451,0.95565808,87.365,87.334,0.09382824]
[1770574949656,0.95565808,87.365,87.34,5.23784824]
[1770574950873,0.95565808,87.372,87.35,5.23784824]
[1770574951172,0.95565808,87.372,87.343,0.09556927]
[1770574951371,28.60761208,87.39,87.341,11.44937658]
[1770574951372,5.23784824,87.37,87.341,11.44937658]
[1770574951575,0.95565808,87.359,87.328,11.45098778]
[1770574951959,0.95565808,87.359,87.332,11.45045627]
[1770574952874,0.95565808,87.359,87.322,0.09899157]
[1770574954273,12.40276588,87.359,87.322,0.09899157]
[1770574954472,0.95565808,87.358,87.322,0.09899157]
[1770574954862,0.95565808,87.358,87.33,5.23784824]
[1770574955263,0.95565808,87.358,87.33,5.34182725]
[1770574956170,0.95565808,87.356,87.325,11.4514369]
[1770574956569,0.95565808,87.356,87.329,11.45088067]
[1770574957267,0.95565808,87.356,87.331,11.45068761]
[1770574957671,0.95565808,87.349,87.322,11.45178302]
[1770574958365,0.95565808,87.349,87.312,0.10879656]
[1770574959678,0.95565808,87.347,87.312,0.10879656]
[1770574960089,0.95565808,87.339,87.31,0.2]
[1770574960262,0.95565808,87.329,87.31,0.2]
[1770574960465,0.95565808,87.328,87.31,0.2]
[1770574962867,0.95565808,87.334,87.31,11.65340291]
[1770574963262,0.95565808,87.334,87.31,0.2]
[1770574964485,0.95099413,87.329,87.301,0.48624135]
[1770574964783,0.95099413,87.327,87.301,0.48624135]
[1770574966492,0.95099413,87.327,87.302,11.4544913]
[1770574966788,0.95099413,87.327,87.303,0.32228676]
[1770574967474,0.93146573,87.333,87.305,0.32370091]
[1770574967672,0.93146573,87.333,87.304,11.4542289]
[1770574967894,0.93146573,87.329,87.301,0.48624135]
[1770574969014,0.93146573,87.319,87.29,0.2]
[1770574969294,0.93146573,87.309,87.267,12.40826087]
[1770574969690,0.93146573,87.309,87.271,11.45849719]
[1770574969893,0.93146573,87.309,87.281,0.94930604]
[1770574970188,0.93146573,87.289,87.26,0.2]
[1770574970392,0.93146573,87.289,87.262,11.4597291]
[1770574970590,0.93146573,87.296,87.271,0.94930604]
[1770574970773,0.93146573,87.309,87.273,11.45821518]
[1770574970973,0.93146573,87.307,87.273,11.45821518]
[1770574971567,0.93146573,87.307,87.274,0.94930604]
[1770574972185,0.93146573,87.307,87.273,11.45821518]
[1770574972186,0.93146573,87.319,87.281,0.94930604]
[1770574972395,0.93146573,87.318,87.281,0.94930604]
[1770574972971,12.38288453,87.326,87.293,0.94930604]
[1770574973167,0.93146573,87.325,87.293,0.94930604]
[1770574977498,0.93146573,87.324,87.294,12.40484708]
[1770574978297,0.93146573,87.324,87.295,0.94930604]
[1770574981508,0.93146573,87.35,87.311,0.94930604]
[1770574981675,0.93146573,87.35,87.321,0.94930604]
[1770574982004,0.93146573,87.349,87.321,0.94930604]
[1770574982579,0.93146573,87.349,87.313,0.94930604]
[1770574983203,0.93146573,87.349,87.321,0.94930604]
[1770574983385,0.93146573,87.356,87.321,0.94930604]
[1770574983986,0.93146573,87.379,87.343,0.94930604]
[1770574984185,0.93146573,87.369,87.336,0.94930604]
[1770574984380,0.93146573,87.349,87.314,40.08520969]
[1770574984593,0.93146573,87.349,87.315,0.94930604]
[1770574985097,0.93146573,87.349,87.32,6.18715428]
[1770574985302,0.93146573,87.349,87.322,0.94930604]
[1770574986285,0.93146573,87.349,87.324,0.94930604]
[1770574988988,0.93146573,87.349,87.323,11.45173665]
[1770574989821,0.93146573,87.347,87.31,6.18715428]
[1770574989996,0.93146573,87.339,87.303,0.94930604]
[1770574990703,0.93146573,87.339,87.314,11.45286328]
[1770574992490,0.93146573,87.356,87.321,0.94930604]
[1770574994017,0.93146573,87.365,87.331,0.94930604]
[1770574994594,0.93146573,87.365,87.34,6.19340364]
[1770574994912,0.93146573,87.365,87.341,0.96448414]
[1770574995895,1.00572456,87.375,87.341,0.96448414]
[1770574997412,1.00572456,87.369,87.339,11.44960487]
[1770574997596,1.00572456,87.369,87.335,0.96448414]
[1770574997798,1.00572456,87.369,87.32,28.63007806]
[1770574997799,1.00572456,87.369,87.341,0.96448414]
[1770574997993,1.00572456,87.369,87.342,0.96448414]
[1770574999720,1.00572456,87.369,87.343,11.44911441]
[1770575000020,1.00572456,87.369,87.344,0.96448414]
[1770575001106,1.00572456,87.369,87.345,12.41333639]
[1770575001301,1.00572456,87.369,87.34,16.69355261]
[1770575001520,1.00572456,87.369,87.33,0.96448414]
[1770575001712,1.00572456,87.369,87.331,0.96448414]
[1770575002023,1.00572456,87.367,87.338,12.41423031]
[1770575002318,1.00572456,87.367,87.339,0.96448414]
[1770575003326,1.00572456,87.367,87.341,0.96448414]
[1770575005303,1.00572456,87.359,87.321,0.96448414]
[1770575005503,1.00572456,87.359,87.324,0.96448414]
[1770575007114,1.00572456,87.349,87.324,0.96448414]
[1770575007521,1.00572456,87.349,87.323,11.45164344]
[1770575007522,1.00572456,87.349,87.316,0.96448414]
[1770575007710,1.00572456,87.349,87.317,0.96448414]
[1770575007906,1.00572456,87.349,87.31,5.2440976]
[1770575008106,1.00572456,87.329,87.304,11.45422233]
[1770575008307,1.00572456,87.319,87.299,11.45486308]
[1770575008515,1.00572456,87.319,87.294,11.45548876]
[1770575009116,1.00572456,87.319,87.29,0.96448414]
[1770575010325,1.00572456,87.319,87.291,11.45593474]
[1770575010524,1.00572456,87.319,87.292,0.96448414]
[1770575012124,1.00572456,87.335,87.301,0.96448414]
[1770575012324,1.00572456,87.343,87.313,0.96448414]
[1770575012626,1.00572456,87.354,87.321,0.96448414]
[1770575012824,5.2440976,87.35,87.321,0.96448414]
[1770575013024,1.00572456,87.349,87.321,0.96448414]
[1770575013222,1.00572456,87.359,87.331,0.96448414]
[1770575016031,1.00572456,87.359,87.333,0.96448414]
[1770575016529,1.00572456,87.359,87.332,11.45055649]
[1770575016713,1.00572456,87.358,87.331,11.45066237]
[1770575018230,1.00572456,87.358,87.322,0.96448414]
[1770575021139,1.00572456,87.358,87.324,0.96448414]
[1770575024732,1.00572456,87.368,87.331,0.96448414]
[1770575025618,5.2440976,87.37,87.332,11.45055649]
[1770575025619,0.93890838,87.366,87.332,11.45055649]
[1770575026347,0.93890838,87.366,87.332,12.47570761]
[1770575027847,0.93890838,87.366,87.333,1.02515112]
[1770575028835,0.93890838,87.364,87.333,1.02515112]
[1770575031249,0.93890838,87.364,87.334,11.45029427]
[1770575031556,5.2440976,87.35,87.325,11.45135906]
[1770575031846,0.93890838,87.349,87.314,1.02515112]
[1770575032039,0.93890838,87.349,87.324,11.45151259]
[1770575032633,0.93890838,87.329,87.293,1.02515112]
[1770575032948,0.93890838,87.329,87.295,1.02515112]
[1770575033452,0.93890838,87.329,87.297,1.02515112]
[1770575034551,0.93890838,87.329,87.301,1.02515112]
[1770575034849,0.93890838,87.319,87.293,11.45563412]
[1770575035225,5.2440976,87.31,87.293,11.45563412]
[1770575035422,0.93890838,87.309,87.293,11.45563412]
[1770575036644,0.93890838,87.309,87.287,11.45645972]
[1770575036854,0.93890838,87.309,87.288,1.02515112]
[1770575037231,0.93890838,87.319,87.288,1.02515112]
[1770575037848,0.93890838,87.319,87.291,1.02515112]
[1770575038056,5.2440976,87.33,87.291,1.02515112]
[1770575038234,0.93890838,87.334,87.301,1.02515112]
[1770575038436,5.2440976,87.33,87.301,1.02515112]
[1770575038744,0.93890838,87.329,87.301,1.02515112]
[1770575039249,0.93890838,87.329,87.303,1.02515112]
[1770575040658,0.93890838,87.329,87.305,1.02515112]
[1770575041651,11.44962183,87.34,87.305,1.02515112]
[1770575041845,11.46,87.398,87.304,11.4542289]
[1770575041846,11.447781,87.354,87.321,1.02515112]
[1770575042051,0.93890838,87.353,87.321,1.02515112]
[1770575042733,0.93890838,87.353,87.323,1.02515112]
[1770575045053,0.93890838,87.353,87.324,11.45160551]
[1770575045256,0.93890838,87.353,87.33,6.26924872]
[1770575045562,11.44729059,87.357,87.331,1.02515112]
[1770575045757,11.44729059,87.357,87.324,11.45160551]
[1770575045758,0.93890838,87.359,87.34,5.2440976]
[1770575047151,0.93890838,87.366,87.341,1.02515112]
[1770575048454,0.93890838,87.366,87.342,1.02515112]
[1770575049744,0.93890838,87.381,87.36,5.2440976]
[1770575051354,0.93890838,87.381,87.353,12.47287997]
[1770575052063,0.93890838,87.381,87.36,5.2440976]
[1770575052854,0.93890838,87.381,87.36,5.2381316]
[1770575053562,0.93890838,87.38,87.354,1.02515112]
[1770575053752,11.44339824,87.387,87.361,1.02515112]
[1770575054069,0.93890838,87.386,87.361,1.02515112]
[1770575054866,0.96311129,87.384,87.361,1.02515112]
[1770575057667,0.96311129,87.382,87.36,5.2381316]
[1770575058163,0.96311129,87.382,87.36,6.23720255]
[1770575058369,0.96311129,87.382,87.36,5.2381316]
[1770575058663,0.96311129,87.382,87.361,0.99907095]
[1770575059164,12.40639229,87.388,87.361,0.99907095]
[1770575059362,0.96311129,87.387,87.361,0.99907095]
[1770575060265,0.96311129,87.385,87.361,0.99907095]
[1770575061251,0.96311129,87.385,87.37,5.2381316]
[1770575061472,0.96311129,87.39,87.37,5.2381316]
[1770575062058,0.96311129,87.396,87.371,0.99907095]
[1770575062772,0.96311129,87.396,87.373,0.99907095]
[1770575062967,0.2,87.41,87.382,0.99907095]
[1770575063170,0.2,87.41,87.391,0.99907095]
[1770575063761,0.2,87.41,87.401,0.99907095]
[1770575064177,0.2,87.42,87.401,0.99907095]
[1770575065376,1.16311129,87.42,87.401,0.99907095]
[1770575065566,0.2,87.42,87.401,0.99907095]
[1770575066778,0.96311129,87.418,87.383,11.44384923]
[1770575066960,0.96311129,87.418,87.382,11.44398263]
[1770575067381,0.96311129,87.416,87.382,12.44305358]
[1770575067567,0.96311129,87.416,87.38,5.2381316]
[1770575067773,0.96311129,87.416,87.38,16.68228666]
[1770575068164,0.96311129,87.416,87.38,17.68135761]
[1770575068473,0.96311129,87.416,87.381,0.99907095]
[1770575070372,0.96311129,87.414,87.381,0.99907095]
[1770575070577,0.96311129,87.414,87.383,0.99907095]
[1770575071651,0.96311129,87.414,87.378,0.99907095]
[1770575071854,11.43968426,87.415,86.408,178.3364944]
[1770575071855,0.96311129,87.409,87.372,12.4443281]
[1770575072457,0.96311129,87.407,87.372,12.4443281]
[1770575072677,0.96311129,87.407,87.372,11.44525715]
[1770575072876,0.96311129,87.399,87.372,11.44525715]
[1770575074092,0.96311129,87.399,87.372,12.4443281]
[1770575074378,0.96311129,87.399,87.373,0.99907095]
[1770575074672,0.96311129,87.406,87.39,5.2381316]
[1770575074877,0.96311129,87.406,87.381,0.99907095]
[1770575076180,0.96311129,87.406,87.382,11.44400448]
[1770575077481,0.96311129,87.413,87.39,5.2381316]
[1770575077778,0.96311129,87.413,87.391,0.99907095]
[1770575078162,0.2,87.42,87.384,11.44374256]
[1770575078163,1.16311129,87.42,87.401,0.99907095]
[1770575080092,0.96311129,87.418,87.4,5.2381316]
[1770575080267,0.96311129,87.418,87.391,11.44273259]
[1770575081788,0.96311129,87.416,87.39,5.2381316]
[1770575081971,0.96311129,87.416,87.39,16.68101638]
[1770575084472,0.96311129,87.414,87.382,0.99907095]
[1770575086086,1.00622506,87.409,87.367,0.93260054]
[1770575086883,1.00622506,87.409,87.37,5.2381316]
[1770575087093,1.00622506,87.407,87.37,5.2381316]
[1770575087489,1.00622506,87.407,87.37,6.17073214]
[1770575089897,1.00622506,87.405,87.371,12.37804582]
[1770575090101,1.00622506,87.405,87.372,0.93260054]
[1770575092409,1.00622506,87.403,87.372,0.93260054]
[1770575092908,1.00622506,87.403,87.381,0.93260054]
[1770575093983,12.44761084,87.402,87.381,0.93260054]
[1770575094512,1.00622506,87.401,87.381,0.93260054]
[1770575098910,1.00622506,87.414,87.383,0.93260054]
[1770575099796,1.00622506,87.409,87.383,0.93260054]
[1770575100399,1.00622506,87.407,87.371,11.44544528]
[1770575100603,11.4406004,87.408,87.261,45.83915296]
[1770575100604,1.00622506,87.379,87.35,0.93260054]
[1770575100835,1.00622506,87.369,87.344,0.93260054]
[1770575101130,1.00622506,87.369,87.341,11.44925084]
[1770575101626,1.00622506,87.369,87.346,0.93260054]
[1770575103152,11.44398852,87.383,87.35,5.2381316]
[1770575103421,11.44398852,87.383,87.347,11.4485901]
[1770575103422,1.00622506,87.391,87.361,0.93260054]
[1770575104012,6.24435666,87.39,87.361,0.93260054]
[1770575104326,1.00622506,87.389,87.361,0.93260054]
[1770575106133,1.00622506,87.409,87.371,0.93260054]
[1770575106430,1.00622506,87.409,87.39,5.2381316]
[1770575106729,1.00622506,87.417,87.391,0.93260054]
[1770575109316,1.00622506,87.417,87.393,0.93260054]
[1770575111729,1.00622506,87.417,87.4,5.2381316]
[1770575111935,0.2,87.42,87.4,6.17073214]
[1770575112106,0.2,87.42,87.401,0.93260054]
[1770575113529,0.2,87.42,87.403,0.93260054]
[1770575113714,12.44297788,87.438,87.411,0.93260054]
[1770575113913,1.00622506,87.435,87.411,0.93260054]
[1770575114121,1.00622506,87.434,87.411,0.93260054]
[1770575117244,0.96866874,87.432,87.411,0.93260054]
[1770575119023,0.96866874,87.435,87.413,0.98994697]
[1770575119722,0.96866874,87.434,87.4,5.23289184]
[1770575119930,0.96866874,87.434,87.401,11.44150551]
[1770575120128,0.96866874,87.434,87.41,5.23289184]
[1770575120423,11.43605204,87.443,87.421,0.98994697]
[1770575121650,11.43605204,87.443,87.42,5.23289184]
[1770575121651,0.96866874,87.444,87.423,0.98994697]
[1770575122329,0.96866874,87.441,87.42,5.23289184]
[1770575122534,0.96866874,87.441,87.42,6.22283881]
[1770575122744,0.96866874,87.435,87.412,11.43995558]
[1770575132956,5.33289184,87.45,87.42,6.22283881]
[1770575132957,0.96866874,87.44,87.42,6.22283881]
[1770575133251,0.96866874,87.44,87.421,0.98994697]
[1770575133631,0.96866874,87.435,87.42,5.23289184]
[1770575135769,0.1,87.45,87.386,0.98994697]
[1770575135770,0.96866874,87.433,87.386,0.98994697]
[1770575135941,0.96866874,87.429,87.4,5.23289184]
[1770575136646,0.96866874,87.429,87.39,5.23289184]
[1770575136847,0.96866874,87.419,87.38,5.23289184]
[1770575137168,0.96866874,87.419,87.38,6.22283881]
[1770575137846,0.96866874,87.417,87.38,6.22283881]
[1770575138555,0.96866874,87.417,87.371,0.98994697]
[1770575139053,40.03752086,87.418,87.372,0.98994697]
[1770575139054,0.96866874,87.409,87.372,0.98994697]
[1770575139637,0.96866874,87.407,87.374,0.98994697]
[1770575139853,0.96866874,87.407,87.381,0.98994697]
[1770575140957,11.4406004,87.408,87.381,0.98994697]
[1770575141457,0.96866874,87.425,87.401,0.98994697]
[1770575141834,0.96866874,87.419,87.378,0.98994697]
[1770575142050,0.96866874,87.419,87.381,11.44408837]
[1770575142752,0.96866874,87.409,87.38,0.98994697]
[1770575144060,0.96866874,87.409,87.381,0.98994697]
[1770575146156,11.43983456,87.414,87.391,0.95360831]
[1770575147359,0.97189727,87.417,87.391,0.95360831]
[1770575147551,0.97189727,87.417,87.4,5.23289184]